bitfinex/quotes_SOLUSD_20251128
["timestamp","ask_amount","ask_price","bid_price","bid_amount"]
[1764335666879,18.46280971,140.8,140.77,3.12]
[1764335667079,21.85924946,140.8,140.77,3.12]
[1764335667284,0.7,140.79,140.77,3.12]
[1764335667687,7.80282534,140.79,140.77,3.12]
[1764335669393,14.90707379,140.79,140.77,3.12]
[1764335670012,14.20707379,140.79,140.77,3.12]
[1764335670191,14.90707379,140.79,140.77,3.12]
[1764335670939,0.7,140.78,140.77,3.12]
[1764335671306,0.7,140.78,140.75,11.19118029]
[1764335671507,0.7,140.78,140.76,3.12]
[1764335673805,7.10247978,140.8,140.77,4.08643975]
[1764335674099,17.75613055,140.8,140.77,4.08643975]
[1764335674303,16.308864,140.79,140.78,0.69]
[1764335674505,16.308864,140.79,140.77,3.39643975]
[1764335674717,16.308864,140.79,140.77,0.69]
[1764335675803,16.308864,140.79,140.77,7.79365625]
[1764335676001,0.2,140.81,140.77,7.79365625]
[1764335676210,0.9,140.81,140.79,3.39643975]
[1764335676510,0.9,140.81,140.78,6.51643975]
[1764335676688,0.7,140.8,140.78,6.51643975]
[1764335677214,0.7,140.8,140.78,3.12]
[1764335678995,0.9,140.81,140.78,10.91295545]
[1764335679317,0.9,140.81,140.79,3.12]
[1764335680430,0.7,140.8,140.79,3.12]
[1764335684130,0.7,140.8,140.79,10.22277718]
[1764335685531,0.2,140.81,140.79,10.22277718]
[1764335685842,0.85,140.81,140.79,10.22277718]
[1764335687131,0.2,140.81,140.79,10.89277718]
[1764335687342,0.2,140.81,140.8,4.06643975]
[1764335687642,0.2,140.81,140.8,11.16871247]
[1764335688497,0.2,140.81,140.8,9.94324562]
[1764335691828,0.85,140.81,140.8,7.10227272]
[1764335692017,0.85,140.81,140.8,10.22227272]
[1764335692828,0.2,140.81,140.8,10.22227272]
[1764335695113,0.85,140.81,140.79,7.10264592]
[1764335695316,0.85,140.81,140.8,3.12]
[1764335699538,0.2,140.81,140.8,10.22227272]
[1764335700634,0.2,140.81,140.8,10.89227272]
[1764335701440,0.2,140.81,140.8,10.22227272]
[1764335701840,0.85,140.81,140.79,3.12]
[1764335702214,0.65,140.8,140.79,3.12]
[1764335703126,0.2,140.81,140.79,10.89277718]
[1764335704012,0.2,140.81,140.8,0.67]
[1764335704432,0.2,140.81,140.79,13.06375008]
[1764335705442,0.85,140.81,140.79,12.39375008]
[1764335705644,0.85,140.81,140.79,7.10277718]
[1764335705950,0.2,140.81,140.8,3.12]
[1764335706242,0.85,140.81,140.8,3.12]
[1764335707049,0.2,140.81,140.8,3.12]
[1764335707552,0.85,140.81,140.8,10.22227272]
[1764335708749,0.85,140.81,140.8,3.12]
[1764335713441,0.85,140.81,140.8,10.22227272]
[1764335713753,0.2,140.81,140.8,10.22227272]
[1764335714053,0.2,140.81,140.8,13.08324562]
[1764335716069,0.2,140.81,140.8,9.96324562]
[1764335716356,0.2,140.81,140.8,13.08324562]
[1764335717550,0.2,140.81,140.8,10.91227272]
[1764335717747,0.2,140.81,140.8,13.08324562]
[1764335721860,0.2,140.81,140.8,10.91227272]
[1764335722356,0.2,140.81,140.8,21.89319054]
[1764335722756,0.2,140.81,140.8,13.08324562]
[1764335724960,0.2,140.81,140.8,12.39324562]
[1764335725341,0.2,140.81,140.8,13.09324562]
[1764335726652,0.2,140.81,140.8,9.97324562]
[1764335726854,0.2,140.81,140.8,13.09324562]
[1764335728966,0.2,140.81,140.8,10.22227272]
[1764335729156,0.2,140.81,140.8,12.39324562]
[1764335729472,0.88,140.81,140.8,3.12]
[1764335730049,0.88,140.81,140.78,2.1709729]
[1764335730254,0.68,140.8,140.78,3.12]
[1764335730948,7.78248692,140.8,140.78,3.12]
[1764335731148,7.78248692,140.8,140.75,9.27555014]
[1764335731349,0.68,140.79,140.77,3.12]
[1764335732676,39.91971369,140.81,140.77,5.2909729]
[1764335732970,0.68,140.79,140.77,5.2909729]
[1764335733141,0.68,140.79,140.77,12.39464132]
[1764335734458,39.91971369,140.81,140.77,12.39464132]
[1764335734662,0.68,140.8,140.77,13.09464132]
[1764335735166,0.68,140.8,140.77,12.39464132]
[1764335735362,0.68,140.8,140.77,3.12]
[1764335735570,7.78229693,140.8,140.77,3.12]
[1764335736353,0.68,140.79,140.77,3.12]
[1764335736545,0.68,140.79,140.77,10.22374206]
[1764335737168,0.68,140.8,140.77,12.39471496]
[1764335737352,39.91956239,140.81,140.77,12.39471496]
[1764335737553,0.68,140.79,140.77,12.39471496]
[1764335741482,0.67,140.8,140.77,12.39471496]
[1764335741783,0.67,140.8,140.77,13.09471496]
[1764335742480,0.67,140.8,140.77,12.39471496]
[1764335745081,0.67,140.8,140.77,9.27471496]
[1764335745380,0.67,140.8,140.78,3.12]
[1764335746986,7.77234823,140.8,140.78,3.12]
[1764335747160,0.67,140.79,140.78,3.12]
[1764335747978,0.67,140.79,140.76,7.10421349]
[1764335748184,0.67,140.79,140.78,3.12]
[1764335749761,7.77278737,140.79,140.74,7.10530055]
[1764335749960,7.77278737,140.79,140.75,3.12]
[1764335750162,0.67,140.78,140.75,3.12]
[1764335751090,0.67,140.78,140.75,10.22429351]
[1764335751488,0.67,140.78,140.75,10.92429351]
[1764335752177,0.67,140.78,140.75,10.22429351]
[1764335752489,0.67,140.79,140.76,11.19879756]
[1764335752782,0.67,140.79,140.77,3.39469765]
[1764335753086,0.67,140.79,140.78,3.12]
[1764335756872,16.308864,140.76,140.71,0.7]
[1764335757187,7.10479573,140.75,140.72,3.12]
[1764335757390,11.16949338,140.75,140.72,3.12]
[1764335757693,0.67,140.74,140.72,3.12]
[1764335758073,4.06469765,140.74,140.72,3.12]
[1764335758673,0.67,140.73,140.72,3.12]
[1764335759687,3.39469765,140.74,140.72,3.12]
[1764335759878,4.06469765,140.74,140.72,3.12]
[1764335761768,10.50000982,140.74,140.7,3.39469765]
[1764335761970,0.67,140.73,140.71,3.12]
[1764335762978,0.67,140.73,140.71,10.22681432]
[1764335764107,0.67,140.73,140.72,3.12]
[1764335764708,0.67,140.74,140.72,3.12]
[1764335766187,11.17005836,140.74,140.72,3.12]
[1764335766385,7.77536071,140.74,140.72,3.12]
[1764335767592,17.6050185,140.75,140.72,3.12]
[1764335767798,23.41320053,140.76,140.73,0.7]
[1764335767978,24.08320053,140.76,140.73,0.7]
[1764335768290,0.67,140.75,140.72,13.62079244]
[1764335768491,0.67,140.75,140.72,10.22609479]
[1764335768698,0.67,140.75,140.72,10.92609479]
[1764335769400,0.67,140.75,140.72,10.22609479]
[1764335770203,7.77488783,140.75,140.72,10.22609479]
[1764335770403,0.67,140.74,140.72,7.10609479]
[1764335770704,0.67,140.74,140.72,10.22609479]
[1764335770880,0.67,140.74,140.72,3.12]
[1764335771601,7.77577387,140.74,140.69,3.39469765]
[1764335771806,11.17047152,140.74,140.7,3.12]
[1764335772004,0.69,140.73,140.7,3.12]
[1764335773193,0.69,140.73,140.7,10.22720004]
[1764335774283,7.79581599,140.73,140.7,10.22720004]
[1764335774508,7.10581599,140.73,140.7,10.22720004]
[1764335774809,0.69,140.72,140.7,10.22720004]
[1764335778600,15.91549671,140.74,140.7,10.22720004]
[1764335778908,0.69,140.73,140.7,14.34189769]
[1764335779109,17.77040254,140.75,140.72,3.39469765]
[1764335779315,16.308864,140.74,140.73,3.12]
[1764335779680,10.22720004,140.76,140.73,7.23469765]
[1764335779908,0.69,140.78,140.74,4.06469765]
[1764335780283,0.69,140.78,140.75,0.67]
[1764335780490,0.69,140.78,140.76,3.12]
[1764335782919,16.988864,140.79,140.76,3.79]
[1764335784817,16.308864,140.79,140.77,4.06469765]
[1764335785001,16.308864,140.79,140.77,0.67]
[1764335785515,16.988864,140.79,140.76,7.18469765]
[1764335786993,4.39218286,140.8,140.77,4.06469765]
[1764335787198,16.308864,140.79,140.77,4.06469765]
[1764335788005,16.308864,140.79,140.77,3.39469765]
[1764335788211,16.308864,140.79,140.77,4.06469765]
[1764335789524,16.988864,140.79,140.77,3.39469765]
[1764335789899,16.308864,140.79,140.77,4.06469765]
[1764335791061,0.2,140.81,140.78,4.06469765]
[1764335791200,16.308864,140.8,140.78,4.06469765]
[1764335791611,16.308864,140.8,140.79,3.39469765]
[1764335793009,0.2,140.81,140.79,4.06469765]
[1764335793215,0.2,140.81,140.8,0.67]
[1764335793524,0.2,140.81,140.8,3.39469765]
[1764335794107,0.88,140.81,140.8,3.39469765]
[1764335794317,0.88,140.81,140.79,3.39469765]
[1764335797434,0.2,140.81,140.8,3.39469765]
[1764335798621,0.88,140.81,140.78,0.67]
[1764335798824,0.88,140.81,140.79,3.39469765]
[1764335799431,0.68,140.8,140.79,3.39469765]
[1764335799630,0.68,140.8,140.78,6.51469765]
[1764335799831,0.2,140.81,140.78,6.51469765]
[1764335800010,0.88,140.81,140.79,3.39469765]
[1764335800211,0.2,140.81,140.8,3.39469765]
[1764335800411,0.88,140.81,140.8,3.39469765]
[1764335800836,0.88,140.81,140.79,3.39469765]
[1764335803032,0.2,140.81,140.78,6.51469765]
[1764335803229,0.7,140.8,140.79,3.39469765]
[1764335803546,0.9,140.81,140.79,3.39469765]
[1764335806550,0.9,140.81,140.76,3.39469765]
[1764335806551,0.7,140.8,140.76,3.39469765]
[1764335806716,0.7,140.8,140.75,0.69]
[1764335806717,17.008864,140.8,140.74,3.81]
[1764335807051,26.10313206,140.8,140.75,3.39469765]
[1764335807222,0.7,140.79,140.75,3.39469765]
[1764335807427,7.10328171,140.78,140.75,3.39469765]
[1764335807919,0.7,140.77,140.76,3.39469765]
[1764335809250,7.80328171,140.78,140.76,3.39469765]
[1764335809551,0.7,140.78,140.76,3.39469765]
[1764335810550,0.7,140.78,140.76,2.17256402]
[1764335811655,0.7,140.78,140.75,9.27734896]
[1764335812538,0.7,140.78,140.75,9.96734896]
[1764335812954,0.7,140.78,140.76,2.17256402]
[1764335814526,0.7,140.78,140.75,7.79429969]
[1764335814726,0.7,140.78,140.75,12.39686371]
[1764335815357,0.7,140.78,140.76,2.17256402]
[1764335817752,0.7,140.78,140.76,9.27683957]
[1764335822062,0.7,140.78,140.76,7.10427555]
[1764335822566,0.7,140.78,140.75,3.12]
[1764335822567,26.28480374,140.78,140.74,7.10492891]
[1764335822744,26.28480374,140.78,140.74,10.22492891]
[1764335823062,0.7,140.77,140.74,10.22492891]
[1764335824258,23.41223972,140.78,140.75,0.69]
[1764335824567,17.008864,140.78,140.75,9.96706891]
[1764335824736,16.308864,140.78,140.76,2.17256402]
[1764335824941,17.008864,140.78,140.76,2.17256402]
[1764335825341,0.7,140.77,140.75,7.10450489]
[1764335825576,0.7,140.77,140.75,10.22450489]
[1764335828148,7.80384036,140.77,140.75,3.12]
[1764335828342,7.80384036,140.77,140.73,7.10540565]
[1764335828552,0.7,140.76,140.74,3.12]
[1764335828750,16.308864,140.74,140.71,9.27897917]
[1764335828963,16.308864,140.74,140.71,12.39897917]
[1764335829264,0.7,140.73,140.71,12.39897917]
[1764335829637,7.80384036,140.77,140.72,2.86256402]
[1764335829857,24.11270436,140.77,140.74,2.17256402]
[1764335830055,24.11270436,140.77,140.74,5.98256402]
[1764335830360,0.7,140.79,140.76,2.17256402]
[1764335830550,0.72,140.79,140.77,5.29256402]
[1764335831139,0.72,140.79,140.77,3.12]
[1764335831942,7.82285991,140.79,140.77,3.12]
[1764335832464,0.72,140.79,140.77,3.12]
[1764335833143,23.41126202,140.8,140.77,3.12]
[1764335833345,0.72,140.79,140.77,3.12]
[1764335834362,0.72,140.79,140.77,5.29256402]
[1764335835066,0.72,140.79,140.77,12.39634872]
[1764335835238,16.308864,140.8,140.77,12.39634872]
[1764335835444,16.308864,140.8,140.79,2.17256402]
[1764335836563,0.2,140.81,140.79,9.9553412]
[1764335836865,0.2,140.81,140.8,2.85256402]
[1764335838269,0.2,140.81,140.8,5.97256402]
[1764335839167,0.92,140.81,140.8,3.12]
[1764335839367,0.2,140.81,140.8,3.12]
[1764335839562,0.2,140.81,140.8,5.29256402]
[1764335841366,0.2,140.81,140.8,3.12]
[1764335841668,0.2,140.81,140.8,5.29256402]
[1764335843170,0.2,140.81,140.8,12.39483674]
[1764335845054,0.2,140.81,140.8,13.11483674]
[1764335847062,0.2,140.81,140.8,12.39483674]
[1764335850589,0.2,140.81,140.8,13.11483674]
[1764335851378,0.2,140.81,140.8,12.39483674]
[1764335852078,0.2,140.81,140.8,13.11483674]
[1764335856078,0.2,140.81,140.8,12.39483674]
[1764335862505,0.2,140.81,140.8,10.22227272]
[1764335863421,0.87,140.81,140.8,3.12]
[1764335863630,0.87,140.81,140.8,5.29256402]
[1764335866004,0.87,140.81,140.8,9.27483674]
[1764335866311,0.87,140.81,140.78,3.12]
[1764335866489,0.67,140.8,140.78,3.12]
[1764335866690,2.84256402,140.8,140.76,7.1041784]
[1764335866890,2.84256402,140.8,140.77,3.12]
[1764335867089,0.67,140.79,140.77,3.12]
[1764335867711,7.77289539,140.79,140.77,3.12]
[1764335867912,0.67,140.78,140.77,3.12]
[1764335868708,7.10227272,140.8,140.77,3.12]
[1764335869004,0.67,140.79,140.77,3.12]
[1764335869800,7.77281169,140.79,140.77,3.12]
[1764335871019,7.10227272,140.8,140.77,3.12]
[1764335871207,7.77227272,140.8,140.77,3.12]
[1764335871522,0.67,140.79,140.77,3.12]
[1764335873422,7.77288978,140.79,140.77,3.12]
[1764335873720,7.77288978,140.79,140.76,3.12]
[1764335873925,0.67,140.78,140.76,3.12]
[1764335875622,7.77288978,140.79,140.76,3.12]
[1764335875821,7.77288978,140.79,140.76,3.84]
[1764335876025,7.77288978,140.79,140.76,3.12]
[1764335876209,0.67,140.78,140.77,3.12]
[1764335880326,0.67,140.79,140.77,3.12]
[1764335880831,0.67,140.8,140.77,3.12]
[1764335881145,0.67,140.8,140.77,3.84]
[1764335881429,7.77261589,140.8,140.77,3.12]
[1764335881799,0.67,140.79,140.77,3.12]
[1764335882003,23.61063633,140.81,140.78,4.11449966]
[1764335882196,0.2,140.81,140.8,3.39449966]
[1764335882430,0.2,140.81,140.8,6.51449966]
[1764335882611,0.2,140.81,140.8,7.23449966]
[1764335883741,0.2,140.81,140.8,14.33677238]
[1764335886027,0.2,140.81,140.8,11.21677238]
[1764335886226,0.2,140.81,140.8,13.61677238]
[1764335887310,0.2,140.81,140.8,3.12]
[1764335887311,0.87,140.81,140.8,3.12]
[1764335888146,0.87,140.81,140.79,7.10268924]
[1764335888326,0.2,140.81,140.79,14.3371889]
[1764335889045,0.2,140.81,140.79,11.2171889]
[1764335889243,0.2,140.81,140.8,3.12]
[1764335889432,0.87,140.81,140.8,3.12]
[1764335891549,0.2,140.81,140.8,13.61677238]
[1764335891750,0.2,140.81,140.8,14.33677238]
[1764335892125,0.2,140.81,140.8,11.21677238]
[1764335892323,0.2,140.81,140.8,14.33677238]
[1764335892630,0.2,140.81,140.8,13.61677238]
[1764335893423,0.92,140.81,140.8,3.12]
[1764335893655,0.2,140.81,140.8,3.39449966]
[1764335893825,0.2,140.81,140.8,6.51449966]
[1764335894327,0.2,140.81,140.8,7.23449966]
[1764335895139,0.2,140.81,140.8,3.84]
[1764335895343,0.2,140.81,140.8,7.23449966]
[1764335895524,0.2,140.81,140.8,14.33677238]
[1764335899049,0.2,140.81,140.8,23.1467173]
[1764335900627,0.2,140.81,140.8,23.43104044]
[1764335904054,0.2,140.84,140.82,0.28432314]
[1764335904234,0.2,140.84,140.83,15.32444458]
[1764335904435,0.2,140.84,140.83,16.01444458]
[1764335905525,0.2,140.84,140.83,16.29876772]
[1764335905945,0.2,140.84,140.83,13.61525944]
[1764335906525,0.87,140.84,140.83,13.61525944]
[1764335906830,0.2,140.84,140.83,13.61525944]
[1764335907151,0.2,140.84,140.83,10.49525944]
[1764335907354,0.2,140.84,140.83,13.61525944]
[1764335908427,0.2,140.84,140.83,26.79402716]
[1764335908627,0.2,140.85,140.84,9.09426806]
[1764335908843,1e-08,140.85,140.84,16.57326738]
[1764335911340,1e-08,140.85,140.84,23.67352298]
[1764335911553,0.2,140.86,140.84,23.67352298]
[1764335911554,1e-08,140.86,140.84,23.67352298]
[1764335911760,1e-08,140.86,140.85,13.17876772]
[1764335912130,1e-08,140.86,140.85,9.78426806]
[1764335912464,1e-08,140.86,140.85,13.17876772]
[1764335912836,1e-08,140.86,140.85,16.29876772]
[1764335913260,1e-08,140.86,140.85,20.00401956]
[1764335913433,1e-08,140.86,140.85,23.39851922]
[1764335915658,0.67000001,140.86,140.85,13.61425116]
[1764335916030,1e-08,140.86,140.85,13.61425116]
[1764335916843,1e-08,140.86,140.85,10.49425116]
[1764335917035,0.67000001,140.86,140.85,13.61425116]
[1764335917454,1e-08,140.86,140.85,13.61425116]
[1764335917757,0.67000001,140.86,140.85,10.49425116]
[1764335917965,0.67000001,140.86,140.85,13.61425116]
[1764335919255,1e-08,140.86,140.85,10.9097515]
[1764335919433,1e-08,140.86,140.85,13.61425116]
[1764335919637,0.67000001,140.86,140.85,13.61425116]
[1764335920039,0.67000001,140.86,140.85,7.0997515]
[1764335920254,0.67000001,140.86,140.85,10.2197515]
[1764335920634,0.67000001,140.86,140.83,7.1002585]
[1764335920959,0.67000001,140.86,140.85,3.12]
[1764335922867,0.67000001,140.86,140.83,7.1002585]
[1764335923053,0.67000001,140.86,140.84,3.12]
[1764335926473,11.1638376,140.86,140.84,3.12]
[1764335926768,0.71,140.85,140.84,3.12]
[1764335930557,0.71,140.85,140.84,10.2202556]
[1764335932086,0.71,140.85,140.83,10.49524585]
[1764335932382,0.71,140.85,140.84,3.12]
[1764335938295,1e-08,140.86,140.84,3.12]
[1764335938595,0.71000001,140.86,140.84,3.12]
[1764335939894,0.71000001,140.86,140.84,10.22018572]
[1764335941082,0.71000001,140.86,140.84,3.12]
[1764335942883,0.71000001,140.86,140.8,8.80994492]
[1764335943082,7.0997515,140.85,140.81,7.10137375]
[1764335943284,7.0997515,140.85,140.81,10.22137375]
[1764335943587,0.71,140.84,140.81,10.22137375]
[1764335943882,0.71,140.84,140.81,3.12]
[1764335944089,0.71,140.84,140.82,3.12]
[1764335944589,7.81048735,140.84,140.82,3.12]
[1764335944960,0.71,140.83,140.82,3.12]
[1764335946088,7.09975848,140.85,140.82,3.12]
[1764335946288,14.19900215,140.86,140.83,2.88058397]
[1764335946587,0.71,140.85,140.83,2.17058397]
[1764335946777,0.71,140.85,140.83,9.27126002]
[1764335951002,1e-08,140.86,140.83,9.27126002]
[1764335951175,1e-08,140.86,140.84,2.85058397]
[1764335951378,1e-08,140.86,140.85,3.12]
[1764335952198,1e-08,140.86,140.85,5.29058397]
[1764335952974,1e-08,140.86,140.85,5.97058397]
[1764335953288,1e-08,140.86,140.85,13.07033547]
[1764335956482,1e-08,140.86,140.85,12.39033547]
[1764335957499,0.70000001,140.86,140.85,12.39033547]
[1764335957816,1e-08,140.86,140.85,12.39033547]
[1764335960607,1e-08,140.86,140.85,13.08033547]
[1764335967210,1e-08,140.86,140.85,10.9097515]
[1764335967407,1e-08,140.86,140.85,13.08033547]
[1764335967909,1e-08,140.86,140.85,10.9097515]
[1764335970388,1e-08,140.86,140.85,21.89028039]
[1764335971588,1e-08,140.86,140.85,22.17460353]
[1764335972318,1e-08,140.86,140.85,21.89028039]
[1764335972610,1e-08,140.86,140.85,12.39033547]
[1764335972988,0.70000001,140.86,140.85,12.39033547]
[1764335973197,1e-08,140.86,140.85,9.27033547]
[1764335973488,1e-08,140.86,140.85,12.39033547]
[1764335974892,1e-08,140.86,140.85,13.08033547]
[1764335977897,1e-08,140.86,140.85,9.27033547]
[1764335978102,1e-08,140.86,140.85,12.39033547]
[1764335980714,1e-08,140.86,140.85,10.2197515]
[1764335980918,1e-08,140.86,140.85,12.39033547]
[1764335981816,1e-08,140.86,140.85,13.07033547]
[1764335982123,1e-08,140.86,140.85,10.2197515]
[1764335982303,1e-08,140.86,140.85,13.07033547]
[1764335983322,1e-08,140.86,140.85,12.39033547]
[1764335984722,1e-08,140.86,140.85,13.07033547]
[1764335985521,1e-08,140.86,140.85,12.39033547]
[1764335994607,1e-08,140.86,140.85,13.60931924]
[1764335996930,0.69000001,140.86,140.85,13.60931924]
[1764335997225,0.69000001,140.86,140.85,10.2197515]
[1764335997628,0.69000001,140.86,140.85,3.12]
[1764336001934,20.38843175,140.86,140.8,17.75534513]
[1764336002134,19.69843174,140.85,140.8,21.14491287]
[1764336002433,20.38843174,140.85,140.81,3.12]
[1764336002631,4.07956774,140.84,140.81,3.12]
[1764336002817,0.69,140.84,140.81,3.12]
[1764336003017,0.69,140.83,140.81,3.12]
[1764336003239,0.69,140.83,140.81,10.22176834]
[1764336005828,20.38843174,140.83,140.81,3.12]
[1764336006026,0.69,140.82,140.81,3.12]
[1764336006335,16.998864,140.82,140.81,3.12]
[1764336008339,16.308864,140.82,140.81,3.12]
[1764336008537,16.998864,140.82,140.81,3.12]
[1764336008920,16.998864,140.82,140.81,6.50956774]
[1764336009453,16.998864,140.82,140.81,3.12]
[1764336011940,0.69,140.82,140.81,10.22176834]
[1764336012138,23.40921275,140.84,140.81,10.22176834]
[1764336012341,3.38956775,140.86,140.82,4.06956774]
[1764336012342,0.72,140.85,140.82,4.06956774]
[1764336012554,0.72,140.84,140.82,3.38956774]
[1764336012755,16.30886401,140.86,140.82,4.06956774]
[1764336012940,0.72,140.85,140.83,3.38956774]
[1764336013145,17.028864,140.85,140.84,3.12]
[1764336013344,0.72,140.85,140.84,3.12]
[1764336021680,0.72,140.85,140.84,10.2202556]
[1764336021872,0.70000001,140.86,140.84,10.2202556]
[1764336022356,0.70000001,140.86,140.84,13.60982334]
[1764336023366,0.70000001,140.86,140.84,10.2202556]
[1764336034670,1e-08,140.86,140.84,10.2202556]
[1764336034850,1e-08,140.86,140.85,4.08956774]
[1764336035783,1e-08,140.86,140.85,11.18931924]
[1764336038180,1e-08,140.86,140.85,19.99926416]
[1764336038381,1e-08,140.86,140.85,20.2835873]
[1764336044556,1e-08,140.86,140.85,19.29926416]
[1764336044881,1e-08,140.86,140.85,22.41926416]
[1764336045068,1e-08,140.86,140.85,23.07926416]
[1764336048560,1e-08,140.86,140.85,23.3635873]
[1764336056780,1e-08,140.86,140.85,22.14241841]
[1764336057757,1e-08,140.87,140.86,9.46994492]
[1764336058059,1e-08,140.87,140.86,11.63834377]
[1764336059086,1e-08,140.87,140.86,18.73759124]
[1764336060969,1e-08,140.87,140.86,19.02191438]
[1764336064797,1e-08,140.87,140.86,21.86453954]
[1764336068397,1e-08,140.87,140.86,19.02191438]
[1764336068779,1e-08,140.87,140.86,22.14191438]
[1764336073502,1e-08,140.87,140.86,24.32474157]
[1764336073709,1e-08,140.87,140.86,22.15191438]
[1764336075986,1e-08,140.87,140.86,24.99474157]
[1764336077606,1e-08,140.87,140.86,22.15191438]
[1764336077798,1e-08,140.87,140.86,21.48191438]
[1764336077982,1e-08,140.87,140.86,22.20191438]
[1764336079513,1e-08,140.87,140.86,21.00191438]
[1764336081216,1e-08,140.87,140.86,23.84474157]
[1764336087118,0.2,140.89,140.87,0.72]
[1764336087325,0.92,140.89,140.88,5.57272199]
[1764336088913,0.92,140.89,140.88,12.67096162]
[1764336092316,0.92,140.89,140.88,21.1965834]
[1764336097222,0.2,140.89,140.88,22.20090654]
[1764336098718,0.2,140.89,140.88,25.0435317]
[1764336102246,0.2,140.89,140.88,24.3235317]
[1764336102730,0.89,140.89,140.88,21.48090654]
[1764336103229,0.89,140.89,140.88,24.3235317]
[1764336103833,0.89,140.89,140.88,21.48090654]
[1764336105605,0.2,140.89,140.88,21.48090654]
[1764336106937,0.89,140.89,140.88,21.48090654]
[1764336112007,0.2,140.93,140.89,9.09426806]
[1764336112215,0.2,140.93,140.92,2.45272199]
[1764336112428,0.2,140.93,140.92,5.57272199]
[1764336113012,0.2,140.93,140.92,8.41453933]
[1764336113407,0.2,140.94,140.93,0.28432314]
[1764336113635,0.2,140.94,140.93,2.45272199]
[1764336113943,0.2,140.94,140.93,9.54844327]
[1764336114140,0.2,140.94,140.93,12.39005872]
[1764336115245,0.2,140.94,140.93,10.22165987]
[1764336115417,0.2,140.94,140.93,12.39005872]
[1764336116517,0.2,140.94,140.93,21.20000364]
[1764336116716,0.2,140.94,140.93,21.90000364]
[1764336117115,0.2,140.94,140.93,21.20000364]
[1764336118542,0.2,140.94,140.93,22.41580205]
[1764336119436,0.2,140.94,140.93,23.11580205]
[1764336120853,1e-08,140.94,140.93,23.11580205]
[1764336121030,0.2,140.95,140.94,8.80994492]
[1764336121369,0.2,140.96,140.94,16.29846532]
[1764336121549,0.2,140.96,140.95,12.89414218]
[1764336121935,0.2,140.96,140.95,15.73515215]
[1764336122449,0.2,140.96,140.95,22.82986658]
[1764336124157,0.69,141.0,140.99,9.09426806]
[1764336124335,0.69,141.0,140.99,12.21426806]
[1764336124742,0.69,141.0,140.99,15.05467281]
[1764336124940,0.69,141.0,140.99,12.21426806]
[1764336125251,0.69,141.0,140.99,22.69116693]
[1764336126174,0.69,141.0,140.99,19.02264653]
[1764336126332,0.69,141.0,140.99,22.40684379]
[1764336128155,0.2,141.01,141.0,0.28432314]
[1764336128458,0.89,141.01,141.0,3.6685204]
[1764336128887,0.2,141.01,141.0,3.6685204]
[1764336129163,0.2,141.01,141.0,10.76071898]
[1764336129659,0.89,141.01,141.0,10.76071898]
[1764336130455,0.89,141.01,141.0,19.28634076]
[1764336131153,0.89,141.01,140.99,3.12]
[1764336131354,0.7,141.0,140.98,7.09288447]
[1764336131541,0.2,141.01,141.0,8.80994492]
[1764336131748,0.2,141.01,141.0,12.19414218]
[1764336132138,0.9,141.01,141.0,12.19414218]
[1764336132341,0.9,141.01,141.0,3.38419726]
[1764336132560,0.9,141.01,141.0,6.50419726]
[1764336133446,0.9,141.01,141.0,3.38419726]
[1764336133654,0.9,141.01,141.0,6.50419726]
[1764336134056,0.9,141.01,141.0,3.12]
[1764336134762,0.9,141.01,141.0,13.59639584]
[1764336142261,0.86,141.01,141.0,13.59639584]